[Event "*** Titled Tuesday 3|2 Blitz"]
[Site "Chess.com"]
[Date "2016.06.07"]
[Round "1"]
[White "TomsKantans"]
[Black "SmarterChess"]
[Result "1/2-1/2"]
[WhiteElo "2456"]
[BlackElo "2137"]
[TimeControl "180+2"]
[EndTime "11:10:14 PDT"]
[Termination "Game drawn by stalemate"]

1. e4 {[%clk 0:03:00]} 1... c6 {[%clk 0:02:59.2]} 2. d4 {[%clk 0:03:00.7]} 2...
d5 {[%clk 0:03:00.8]} 3. Nc3 {[%clk 0:03:02.2]} 3... dxe4 {[%clk 0:03:01.4]} 4.
Nxe4 {[%clk 0:03:04.1]} 4... Bf5 {[%clk 0:03:03]} 5. Ng3 {[%clk 0:03:05.3]} 5...
Bg6 {[%clk 0:03:04.5]} 6. Nf3 {[%clk 0:03:06.9]} 6... Nd7 {[%clk 0:03:04]} 7. h4
{[%clk 0:03:08.1]} 7... h6 {[%clk 0:03:05.2]} 8. h5 {[%clk 0:03:09.6]} 8... Bh7
{[%clk 0:03:06.6]} 9. Bd3 {[%clk 0:03:10.9]} 9... Bxd3 {[%clk 0:03:07.3]} 10.
Qxd3 {[%clk 0:03:12.8]} 10... Ngf6 {[%clk 0:03:08.6]} 11. Bd2 {[%clk 0:03:14.1]}
11... e6 {[%clk 0:03:10]} 12. O-O-O {[%clk 0:03:15.2]} 12... Qc7 {[%clk
0:03:08.4]} 13. Ne4 {[%clk 0:03:14.2]} 13... O-O-O {[%clk 0:03:06.1]} 14. Rh4
{[%clk 0:03:14.4]} 14... Nxe4 {[%clk 0:02:54.8]} 15. Qxe4 {[%clk 0:03:15.4]}
15... Nf6 {[%clk 0:02:55.1]} 16. Qe2 {[%clk 0:03:16.5]} 16... Bd6 {[%clk
0:02:51.4]} 17. g3 {[%clk 0:03:17.5]} 17... Kb8 {[%clk 0:02:47.1]} 18. Kb1
{[%clk 0:03:14.8]} 18... Ka8 {[%clk 0:02:44.6]} 19. a3 {[%clk 0:03:14.4]} 19...
Rhe8 {[%clk 0:02:41.3]} 20. Ne5 {[%clk 0:03:13.1]} 20... Bxe5 {[%clk 0:02:30.1]}
21. dxe5 {[%clk 0:03:11.9]} 21... Nd7 {[%clk 0:02:31.4]} 22. Rg4 {[%clk
0:03:05.6]} 22... Qxe5 {[%clk 0:01:57.1]} 23. Re4 {[%clk 0:01:40]} 23... Qf5
{[%clk 0:01:02.3]} 24. g4 {[%clk 0:01:31.2]} 24... Qb5 {[%clk 0:00:38.6]} 25.
Qxb5 {[%clk 0:01:03.9]} 25... cxb5 {[%clk 0:00:40.5]} 26. Bc3 {[%clk 0:01:05]}
26... Nc5 {[%clk 0:00:28.8]} 27. Red4 {[%clk 0:00:43.1]} 27... Rxd4 {[%clk
0:00:20.3]} 28. Rxd4 {[%clk 0:00:45]} 28... Na4 {[%clk 0:00:21.1]} 29. Ba5
{[%clk 0:00:40.6]} 29... b6 {[%clk 0:00:21.7]} 30. Bb4 {[%clk 0:00:41.5]} 30...
Kb7 {[%clk 0:00:22.9]} 31. Rd7+ {[%clk 0:00:42]} 31... Kc6 {[%clk 0:00:24.3]}
32. Rxa7 {[%clk 0:00:40.5]} 32... f5 {[%clk 0:00:24.2]} 33. Rxg7 {[%clk
0:00:37.4]} 33... fxg4 {[%clk 0:00:25.5]} 34. Rxg4 {[%clk 0:00:39.3]} 34... Nc5
{[%clk 0:00:26.1]} 35. Rg6 {[%clk 0:00:38.8]} 35... Rf8 {[%clk 0:00:26.1]} 36.
Rxh6 {[%clk 0:00:33.9]} 36... Rxf2 {[%clk 0:00:27.2]} 37. Bxc5 {[%clk
0:00:35.3]} 37... bxc5 {[%clk 0:00:28.6]} 38. Rxe6+ {[%clk 0:00:36.5]} 38... Kd5
{[%clk 0:00:30.3]} 39. Rg6 {[%clk 0:00:34.7]} 39... Rh2 {[%clk 0:00:30.8]} 40.
h6 {[%clk 0:00:36]} 40... b4 {[%clk 0:00:30.1]} 41. a4 {[%clk 0:00:35]} 41... c4
{[%clk 0:00:28.3]} 42. Kc1 {[%clk 0:00:23.6]} 42... c3 {[%clk 0:00:28]} 43. bxc3
{[%clk 0:00:23.8]} 43... bxc3 {[%clk 0:00:29.9]} 44. Kb1 {[%clk 0:00:25.3]}
44... Kc4 {[%clk 0:00:30]} 45. a5 {[%clk 0:00:24.3]} 45... Kb4 {[%clk
0:00:28.3]} 46. Rb6+ {[%clk 0:00:06]} 46... Kxa5 {[%clk 0:00:29.5]} 47. Rb3
{[%clk 0:00:07.4]} 47... Rxh6 {[%clk 0:00:30.3]} 48. Rxc3 {[%clk 0:00:08.8]}
48... Kb5 {[%clk 0:00:32]} 49. Kb2 {[%clk 0:00:10.7]} 49... Kb6 {[%clk
0:00:31.4]} 50. Rb3+ {[%clk 0:00:12.6]} 50... Kc7 {[%clk 0:00:32.4]} 51. Rc3+
{[%clk 0:00:14.5]} 51... Kb7 {[%clk 0:00:33.4]} 52. Rb3+ {[%clk 0:00:15.2]}
52... Kc7 {[%clk 0:00:34.7]} 53. c4 {[%clk 0:00:16.8]} 53... Rg6 {[%clk
0:00:35.3]} 54. Kc3 {[%clk 0:00:15.9]} 54... Rh6 {[%clk 0:00:36.8]} 55. Kb4
{[%clk 0:00:17.8]} 55... Rg6 {[%clk 0:00:36.9]} 56. Rh3 {[%clk 0:00:18.4]} 56...
Rf6 {[%clk 0:00:37.7]} 57. Rh5 {[%clk 0:00:19.7]} 57... Rg6 {[%clk 0:00:38.8]}
58. Kb5 {[%clk 0:00:21.6]} 58... Rf6 {[%clk 0:00:40]} 59. Rh7+ {[%clk
0:00:23.1]} 59... Kc8 {[%clk 0:00:40.7]} 60. Ra7 {[%clk 0:00:24.6]} 60... Rg6
{[%clk 0:00:41.6]} 61. Ra6 {[%clk 0:00:25.9]} 61... Rxa6 {[%clk 0:00:37.5]} 62.
Kxa6 {[%clk 0:00:26.7]} 62... Kc7 {[%clk 0:00:39.1]} 63. Kb5 {[%clk 0:00:22.7]}
63... Kb7 {[%clk 0:00:40.3]} 64. Kc5 {[%clk 0:00:24]} 64... Kc7 {[%clk
0:00:41.6]} 65. Kd5 {[%clk 0:00:25.9]} 65... Kd7 {[%clk 0:00:42.5]} 66. c5
{[%clk 0:00:27.6]} 66... Kc7 {[%clk 0:00:43.5]} 67. c6 {[%clk 0:00:29.5]} 67...
Kc8 {[%clk 0:00:44.7]} 68. Kc5 {[%clk 0:00:31.4]} 68... Kc7 {[%clk 0:00:45.9]}
69. Kb5 {[%clk 0:00:32.5]} 69... Kc8 {[%clk 0:00:46.6]} 70. Kc5 {[%clk
0:00:34.4]} 70... Kc7 {[%clk 0:00:47.7]} 71. Kd5 {[%clk 0:00:36.3]} 71... Kc8
{[%clk 0:00:48.5]} 72. Kd6 {[%clk 0:00:38.2]} 72... Kd8 {[%clk 0:00:49.4]} 73.
c7+ {[%clk 0:00:40.1]} 73... Kc8 {[%clk 0:00:50.6]} 74. Kc6 {[%clk 0:00:42]}
1/2-1/2

[Event "*** Titled Tuesday 3|2 Blitz"]
[Site "Chess.com"]
[Date "2016.06.07"]
[Round "1"]
[White "matej2221"]
[Black "norwaytoadog"]
[Result "1-0"]
[WhiteElo "2440"]
[BlackElo "2045"]
[TimeControl "180+2"]
[EndTime "11:10:38 PDT"]
[Termination "matej2221 won on time"]

1. e4 {[%clk 0:03:00.8]} 1... e5 {[%clk 0:03:00]} 2. Nf3 {[%clk 0:03:01.4]} 2...
Nc6 {[%clk 0:03:00.9]} 3. d4 {[%clk 0:03:01.6]} 3... exd4 {[%clk 0:03:00.2]} 4.
Nxd4 {[%clk 0:03:03.5]} 4... Nf6 {[%clk 0:03:00.4]} 5. Nc3 {[%clk 0:03:03.8]}
5... Bc5 {[%clk 0:03:00.8]} 6. Nxc6 {[%clk 0:02:55.8]} 6... bxc6 {[%clk
0:02:57.7]} 7. Bd3 {[%clk 0:02:54.8]} 7... O-O {[%clk 0:02:56.3]} 8. O-O {[%clk
0:02:55.7]} 8... d6 {[%clk 0:02:57.2]} 9. Bg5 {[%clk 0:02:54.7]} 9... h6 {[%clk
0:02:55.3]} 10. Bh4 {[%clk 0:02:55.9]} 10... Rb8 {[%clk 0:02:48.6]} 11. Rb1
{[%clk 0:02:57.2]} 11... Bd4 {[%clk 0:02:46.5]} 12. Qd2 {[%clk 0:02:51.9]} 12...
Qe8 {[%clk 0:02:33.7]} 13. Rfe1 {[%clk 0:02:45.7]} 13... Nd7 {[%clk 0:02:28.5]}
14. b3 {[%clk 0:02:36.9]} 14... Bf6 {[%clk 0:02:26.8]} 15. Bxf6 {[%clk
0:02:36.5]} 15... Nxf6 {[%clk 0:02:25.3]} 16. Qe3 {[%clk 0:02:36.2]} 16... a5
{[%clk 0:02:14.9]} 17. h3 {[%clk 0:02:37.4]} 17... Be6 {[%clk 0:02:06.7]} 18. e5
{[%clk 0:02:32.4]} 18... Nd5 {[%clk 0:01:59.1]} 19. Nxd5 {[%clk 0:02:32.6]}
19... Bxd5 {[%clk 0:01:58]} 20. c4 {[%clk 0:02:26.8]} 20... Be6 {[%clk
0:01:58.6]} 21. Qe4 {[%clk 0:02:25.1]} 21... g6 {[%clk 0:01:53.6]} 22. exd6
{[%clk 0:02:22.1]} 22... cxd6 {[%clk 0:01:53.1]} 23. Qf4 {[%clk 0:02:22.6]}
23... Qd7 {[%clk 0:01:50.6]} 24. Qxh6 {[%clk 0:02:22.7]} 24... Bf5 {[%clk
0:01:45.5]} 25. Rbd1 {[%clk 0:02:18.1]} 25... Rfe8 {[%clk 0:01:44.7]} 26. Qd2
{[%clk 0:02:03.8]} 26... a4 {[%clk 0:01:20.4]} 27. bxa4 {[%clk 0:01:36]} 27...
Bxd3 {[%clk 0:01:14.9]} 28. Rxe8+ {[%clk 0:01:30.9]} 28... Rxe8 {[%clk
0:01:13.7]} 29. Qxd3 {[%clk 0:01:32.5]} 29... Qa7 {[%clk 0:01:06.3]} 30. Qxd6
{[%clk 0:00:57.8]} 30... Re2 {[%clk 0:01:01.5]} 31. Qd8+ {[%clk 0:00:51.9]}
31... Kh7 {[%clk 0:00:55.3]} 32. Qh4+ {[%clk 0:00:52.7]} 32... Kg7 {[%clk
0:00:53.4]} 33. Qd4+ {[%clk 0:00:53.5]} 33... Qxd4 {[%clk 0:00:53.9]} 34. Rxd4
{[%clk 0:00:55.4]} 34... Rxa2 {[%clk 0:00:54.4]} 35. Rd6 {[%clk 0:00:56.4]}
35... c5 {[%clk 0:00:49.6]} 36. Rc6 {[%clk 0:00:57.2]} 36... Rxa4 {[%clk
0:00:49.8]} 37. Rxc5 {[%clk 0:00:58.5]} 37... Ra1+ {[%clk 0:00:50.6]} 38. Kh2
{[%clk 0:00:59.9]} 38... Rc1 {[%clk 0:00:47.8]} 39. Kg3 {[%clk 0:01:00.9]} 39...
Rc3+ {[%clk 0:00:47.2]} 40. f3 {[%clk 0:01:01.9]} 40... Rc2 {[%clk 0:00:47.7]}
41. h4 {[%clk 0:01:03]} 41... Kf6 {[%clk 0:00:47.3]} 42. Rc8 {[%clk 0:01:03.7]}
42... Kg7 {[%clk 0:00:45.8]} 43. c5 {[%clk 0:01:04.7]} 43... Kf6 {[%clk
0:00:45.4]} 44. Kh3 {[%clk 0:01:05.3]} 44... Rc3 {[%clk 0:00:44.3]} 45. c6
{[%clk 0:01:00.1]} 45... Kg7 {[%clk 0:00:39.7]} 46. Kg4 {[%clk 0:00:53.7]} 46...
Rc4+ {[%clk 0:00:40]} 47. Kg3 {[%clk 0:00:53.7]} 47... Rc3 {[%clk 0:00:40.4]}
48. c7 {[%clk 0:00:40.8]} 48... Rc4 {[%clk 0:00:40.5]} 49. Kf2 {[%clk
0:00:39.5]} 49... Rc2+ {[%clk 0:00:40.8]} 50. Ke3 {[%clk 0:00:40.9]} 50... Rc5
{[%clk 0:00:40.6]} 51. g4 {[%clk 0:00:41.5]} 51... Kh7 {[%clk 0:00:39.2]} 52.
Kd4 {[%clk 0:00:41.3]} 52... Rc6 {[%clk 0:00:37.6]} 53. Kd5 {[%clk 0:00:41.4]}
53... Rc3 {[%clk 0:00:38.1]} 54. Ke5 {[%clk 0:00:42.9]} 54... Kg7 {[%clk
0:00:37.7]} 55. h5 {[%clk 0:00:41.7]} 55... gxh5 {[%clk 0:00:37]} 56. gxh5
{[%clk 0:00:43.6]} 56... Kh7 {[%clk 0:00:36.8]} 57. f4 {[%clk 0:00:44.8]} 57...
Rc4 {[%clk 0:00:37]} 58. f5 {[%clk 0:00:45.8]} 58... Kg7 {[%clk 0:00:36.1]} 59.
h6+ {[%clk 0:00:32.9]} 59... Kh7 {[%clk 0:00:36.3]} 60. Kf6 {[%clk 0:00:31.1]}
60... Rc6+ {[%clk 0:00:37.1]} 61. Kxf7 {[%clk 0:00:30.6]} 61... Rc5 {[%clk
0:00:23.5]} 62. Ke7 {[%clk 0:00:30.1]} 62... Rc6 {[%clk 0:00:20.6]} 63. f6
{[%clk 0:00:29.3]} 63... Rc5 {[%clk 0:00:13.2]} 64. f7 {[%clk 0:00:30.9]} 64...
Rc6 {[%clk 0:00:11.7]} 65. f8=Q {[%clk 0:00:23.6]} 1-0

[Event "*** Titled Tuesday 3|2 Blitz"]
[Site "Chess.com"]
[Date "2016.06.07"]
[Round "1"]
[White "petrpalachev"]
[Black "rdclayton"]
[Result "0-1"]
[WhiteElo "2408"]
[BlackElo "2045"]
[TimeControl "180+2"]
[EndTime "11:10:50 PDT"]
[Termination "rdclayton won by resignation"]

1. d4 {[%clk 0:02:58.7]} 1... Nf6 {[%clk 0:02:59.8]} 2. c4 {[%clk 0:03:00]} 2...
e6 {[%clk 0:03:00.9]} 3. Nf3 {[%clk 0:02:59.6]} 3... Be7 {[%clk 0:03:02]} 4. Nc3
{[%clk 0:02:59.1]} 4... O-O {[%clk 0:03:02.6]} 5. e4 {[%clk 0:02:59.7]} 5... d5
{[%clk 0:03:03.6]} 6. e5 {[%clk 0:03:00.3]} 6... Ne4 {[%clk 0:03:04]} 7. Bd3
{[%clk 0:02:52.2]} 7... Nxc3 {[%clk 0:03:04.1]} 8. bxc3 {[%clk 0:02:54.1]} 8...
dxc4 {[%clk 0:03:05.3]} 9. Bxc4 {[%clk 0:02:56]} 9... c5 {[%clk 0:03:06.2]} 10.
O-O {[%clk 0:02:56.1]} 10... cxd4 {[%clk 0:03:06.6]} 11. cxd4 {[%clk 0:02:58]}
11... Nc6 {[%clk 0:03:07.8]} 12. a4 {[%clk 0:02:41.3]} 12... b6 {[%clk
0:03:00.3]} 13. d5 {[%clk 0:02:42.2]} 13... Na5 {[%clk 0:02:35.5]} 14. Ba2
{[%clk 0:02:42.5]} 14... exd5 {[%clk 0:02:35.5]} 15. Bxd5 {[%clk 0:02:38]} 15...
Bb7 {[%clk 0:02:35.9]} 16. Bxb7 {[%clk 0:02:38.8]} 16... Nxb7 {[%clk 0:02:37.2]}
17. Qe2 {[%clk 0:02:34.6]} 17... Nc5 {[%clk 0:02:27.3]} 18. Rd1 {[%clk
0:02:33.9]} 18... Qc7 {[%clk 0:02:25.9]} 19. Bg5 {[%clk 0:02:28.8]} 19... Bxg5
{[%clk 0:02:23.7]} 20. Nxg5 {[%clk 0:02:30.7]} 20... h6 {[%clk 0:02:23.8]} 21.
Nf3 {[%clk 0:02:31.1]} 21... Rfd8 {[%clk 0:02:21.8]} 22. h3 {[%clk 0:02:26.4]}
22... Rxd1+ {[%clk 0:02:18.4]} 23. Qxd1 {[%clk 0:02:28.3]} 23... Rd8 {[%clk
0:02:18]} 24. Qe1 {[%clk 0:02:28.3]} 24... Re8 {[%clk 0:01:34.2]} 25. a5 {[%clk
0:02:27.6]} 25... Nd3 {[%clk 0:01:29.1]} 26. Qe4 {[%clk 0:02:08.4]} 26... Nxe5
{[%clk 0:01:25.6]} 27. Nd4 {[%clk 0:01:57.6]} 27... Qc8 {[%clk 0:00:59.5]} 28.
axb6 {[%clk 0:01:50.9]} 28... axb6 {[%clk 0:00:59.7]} 29. Nf5 {[%clk 0:01:46.1]}
29... Ng6 {[%clk 0:00:52.3]} 30. Qg4 {[%clk 0:01:44.1]} 30... Qc5 {[%clk
0:00:42.7]} 31. h4 {[%clk 0:01:39.2]} 31... Qe5 {[%clk 0:00:24.8]} 32. Rb1
{[%clk 0:01:30.6]} 32... Qe4 {[%clk 0:00:22.8]} 33. Qxe4 {[%clk 0:01:28.6]}
33... Rxe4 {[%clk 0:00:24.7]} 34. g3 {[%clk 0:01:26.6]} 34... Re6 {[%clk
0:00:24.6]} 35. Nd4 {[%clk 0:01:27]} 35... Rf6 {[%clk 0:00:23.7]} 36. Re1 {[%clk
0:01:24.7]} 36... Kh7 {[%clk 0:00:21.4]} 37. Re8 {[%clk 0:01:24.7]} 37... h5
{[%clk 0:00:20]} 38. Kg2 {[%clk 0:01:25.1]} 38... Rd6 {[%clk 0:00:13.6]} 39. Nf3
{[%clk 0:01:26.6]} 39... f6 {[%clk 0:00:13.6]} 40. Ng1 {[%clk 0:01:24.8]} 40...
Rd7 {[%clk 0:00:14.6]} 41. Rb8 {[%clk 0:01:23.3]} 41... Rd6 {[%clk 0:00:14.8]}
42. Ne2 {[%clk 0:01:23.8]} 42... Ne5 {[%clk 0:00:15.7]} 43. Nf4 {[%clk
0:01:24.2]} 43... g6 {[%clk 0:00:15.3]} 44. Rb7+ {[%clk 0:01:25.1]} 44... Kh6
{[%clk 0:00:15.7]} 45. Kh2 {[%clk 0:01:23]} 45... Ng4+ {[%clk 0:00:15.9]} 46.
Kg2 {[%clk 0:01:24.3]} 46... Rd2 {[%clk 0:00:16.3]} 47. Nh3 {[%clk 0:01:25.1]}
47... Rb2 {[%clk 0:00:15.6]} 48. Rb8 {[%clk 0:01:23.3]} 48... b5 {[%clk
0:00:14.2]} 49. Kf3 {[%clk 0:01:24.3]} 49... b4 {[%clk 0:00:12.8]} 50. Rb7
{[%clk 0:01:24.5]} 50... b3 {[%clk 0:00:13.3]} 51. Kg2 {[%clk 0:01:25.3]} 51...
Rb1 {[%clk 0:00:12.7]} 52. Nf4 {[%clk 0:01:24.2]} 52... b2 {[%clk 0:00:12.7]}
53. Rb6 {[%clk 0:01:13.9]} 53... Ne5 {[%clk 0:00:12.8]} 54. Rb4 {[%clk
0:00:58.9]} 54... g5 {[%clk 0:00:10.9]} 55. hxg5+ {[%clk 0:00:58.5]} 55... fxg5
{[%clk 0:00:12.8]} 56. Rb6+ {[%clk 0:00:59.7]} 56... Kh7 {[%clk 0:00:13.1]} 57.
Nxh5 {[%clk 0:00:57]} 57... Nc4 {[%clk 0:00:12.7]} 58. Nf6+ {[%clk 0:00:58.6]}
58... Kg7 {[%clk 0:00:12.4]} 59. Nh5+ {[%clk 0:00:59]} 59... Kf7 {[%clk
0:00:13.4]} 60. Rb4 {[%clk 0:00:59]} 60... Rc1 {[%clk 0:00:13.3]} 61. Kf3 {[%clk
0:00:58.6]} 61... b1=Q {[%clk 0:00:14]} 62. Rxb1 {[%clk 0:01:00.2]} 62... Rxb1
{[%clk 0:00:15.6]} 63. Kg4 {[%clk 0:01:02.1]} 63... Rf1 {[%clk 0:00:14.1]} 64.
f4 {[%clk 0:01:00.6]} 64... gxf4 {[%clk 0:00:14.6]} 65. Nxf4 {[%clk 0:01:02.5]}
65... Ne3+ {[%clk 0:00:14.1]} 66. Kg5 {[%clk 0:01:03.6]} 66... Rf3 {[%clk
0:00:11.7]} 67. Nh5 {[%clk 0:01:05]} 67... Nf1 {[%clk 0:00:09.1]} 68. Kg4 {[%clk
0:01:06]} 68... Nh2+ {[%clk 0:00:09.1]} 69. Kg5 {[%clk 0:01:07.5]} 69... Nf1
{[%clk 0:00:08.8]} 70. Kg4 {[%clk 0:01:08.7]} 70... Ra3 {[%clk 0:00:10.4]} 71.
Kg5 {[%clk 0:01:09.8]} 71... Nxg3 {[%clk 0:00:10.7]} 72. Nf4 {[%clk 0:01:11.4]}
72... Ra5+ {[%clk 0:00:10.4]} 73. Kg4 {[%clk 0:01:12.7]} 73... Ne4 {[%clk
0:00:11.2]} 74. Nd3 {[%clk 0:01:14]} 74... Kf6 {[%clk 0:00:11]} 75. Kf4 {[%clk
0:01:15]} 75... Ng5 {[%clk 0:00:11.6]} 76. Kg4 {[%clk 0:01:13.4]} 76... Ra4+
{[%clk 0:00:12.4]} 77. Kh5 {[%clk 0:01:13.5]} 77... Kf5 {[%clk 0:00:11.1]} 78.
Kh6 {[%clk 0:01:12.3]} 78... Ra7 {[%clk 0:00:11.5]} 0-1

[Event "*** Titled Tuesday 3|2 Blitz"]
[Site "Chess.com"]
[Date "2016.06.07"]
[Round "1"]
[White "flavettes"]
[Black "andretta"]
[Result "1/2-1/2"]
[WhiteElo "2493"]
[BlackElo "2170"]
[TimeControl "180+2"]
[EndTime "11:11:25 PDT"]
[Termination "Game drawn - insufficient material"]

1. d4 {[%clk 0:03:01.9]} 1... d5 {[%clk 0:02:58.4]} 2. Nf3 {[%clk 0:03:03.8]}
2... e6 {[%clk 0:02:50.1]} 3. c4 {[%clk 0:03:05.7]} 3... dxc4 {[%clk 0:02:45.8]}
4. Nc3 {[%clk 0:03:07.1]} 4... Nf6 {[%clk 0:02:11.1]} 5. e3 {[%clk 0:03:00.6]}
5... c5 {[%clk 0:02:10.8]} 6. Bxc4 {[%clk 0:02:59.9]} 6... Nc6 {[%clk
0:02:07.3]} 7. a3 {[%clk 0:02:59.6]} 7... a6 {[%clk 0:02:05.2]} 8. O-O {[%clk
0:02:56.7]} 8... cxd4 {[%clk 0:02:04.2]} 9. exd4 {[%clk 0:02:56.2]} 9... Be7
{[%clk 0:01:48.9]} 10. Ba2 {[%clk 0:02:48.6]} 10... O-O {[%clk 0:01:49.5]} 11.
Re1 {[%clk 0:02:48.1]} 11... b5 {[%clk 0:01:43.7]} 12. d5 {[%clk 0:02:44.9]}
12... exd5 {[%clk 0:01:41.8]} 13. Nxd5 {[%clk 0:02:45.7]} 13... Be6 {[%clk
0:01:40.6]} 14. Nxe7+ {[%clk 0:02:36.2]} 14... Qxe7 {[%clk 0:01:41.6]} 15. Bxe6
{[%clk 0:02:36.5]} 15... fxe6 {[%clk 0:01:38.5]} 16. Qe2 {[%clk 0:02:37.4]}
16... e5 {[%clk 0:01:35]} 17. Nxe5 {[%clk 0:02:33.5]} 17... Qxe5 {[%clk
0:01:29.1]} 18. Qxe5 {[%clk 0:02:33.9]} 18... Nxe5 {[%clk 0:01:28.7]} 19. Rxe5
{[%clk 0:02:35.8]} 19... Ng4 {[%clk 0:01:24.9]} 20. Re2 {[%clk 0:02:36.5]} 20...
Rae8 {[%clk 0:01:22.3]} 21. Be3 {[%clk 0:02:25.8]} 21... Nxf2 {[%clk 0:01:18.8]}
22. h3 {[%clk 0:02:11.5]} 22... Ne4 {[%clk 0:01:08.5]} 23. Ree1 {[%clk
0:02:09.1]} 23... Ng3 {[%clk 0:00:59.1]} 24. Bc5 {[%clk 0:02:05.2]} 24... Rxe1+
{[%clk 0:00:56]} 25. Rxe1 {[%clk 0:02:07.1]} 25... Rf6 {[%clk 0:00:53.7]} 26.
Re7 {[%clk 0:01:58.7]} 26... h6 {[%clk 0:00:48.3]} 27. Bd4 {[%clk 0:01:54]}
27... Rf1+ {[%clk 0:00:38.8]} 28. Kh2 {[%clk 0:01:54.1]} 28... Nf5 {[%clk
0:00:38.5]} 29. Re4 {[%clk 0:01:43.2]} 29... Nxd4 {[%clk 0:00:37.2]} 30. Rxd4
{[%clk 0:01:45.1]} 30... Rf6 {[%clk 0:00:38.8]} 31. Kg3 {[%clk 0:01:45.3]} 31...
Kf7 {[%clk 0:00:38.5]} 32. h4 {[%clk 0:01:45.2]} 32... Ke6 {[%clk 0:00:25.3]}
33. Kg4 {[%clk 0:01:36.4]} 33... Rf2 {[%clk 0:00:22.7]} 34. Rb4 {[%clk
0:01:20.5]} 34... Rxg2+ {[%clk 0:00:22.8]} 35. Kf3 {[%clk 0:01:21.1]} 35... Rg1
{[%clk 0:00:22.4]} 36. a4 {[%clk 0:01:21.8]} 36... bxa4 {[%clk 0:00:17]} 37.
Rxa4 {[%clk 0:01:23.7]} 37... Rh1 {[%clk 0:00:17.6]} 38. Rxa6+ {[%clk
0:01:24.5]} 38... Kf7 {[%clk 0:00:19.2]} 39. Kg4 {[%clk 0:01:24.9]} 39... Rg1+
{[%clk 0:00:18.9]} 40. Kh5 {[%clk 0:01:25]} 40... Rb1 {[%clk 0:00:14.3]} 41. Rb6
{[%clk 0:01:25.7]} 41... Kg8 {[%clk 0:00:14.4]} 42. Rb7 {[%clk 0:01:24]} 42...
Kh7 {[%clk 0:00:15.5]} 43. Kg4 {[%clk 0:01:25.3]} 43... Rg1+ {[%clk 0:00:13.2]}
44. Kh3 {[%clk 0:01:26.7]} 44... Rh1+ {[%clk 0:00:13.8]} 45. Kg3 {[%clk
0:01:28.1]} 45... Rg1+ {[%clk 0:00:15.2]} 46. Kh2 {[%clk 0:01:29.6]} 46... Rg4
{[%clk 0:00:16.4]} 47. Kh3 {[%clk 0:01:30.1]} 47... Rc4 {[%clk 0:00:17.7]} 48.
b4 {[%clk 0:01:30.8]} 48... Rc3+ {[%clk 0:00:17.5]} 49. Kg2 {[%clk 0:01:31.8]}
49... Rc2+ {[%clk 0:00:18.8]} 50. Kg3 {[%clk 0:01:33.1]} 50... Rc3+ {[%clk
0:00:20.4]} 51. Kg4 {[%clk 0:01:34.2]} 51... Rc4+ {[%clk 0:00:21.5]} 52. Kg3
{[%clk 0:01:35.8]} 52... Rc3+ {[%clk 0:00:22.7]} 53. Kg2 {[%clk 0:01:37.4]}
53... Rc2+ {[%clk 0:00:22]} 54. Kf3 {[%clk 0:01:38.6]} 54... Rc3+ {[%clk
0:00:23.4]} 55. Kf2 {[%clk 0:01:37.5]} 55... Rc2+ {[%clk 0:00:24.1]} 56. Ke3
{[%clk 0:01:34.6]} 56... Rc4 {[%clk 0:00:25.1]} 57. h5 {[%clk 0:01:35.9]} 57...
Rh4 {[%clk 0:00:26]} 58. Rb5 {[%clk 0:01:37.2]} 58... Rh3+ {[%clk 0:00:27.3]}
59. Kf4 {[%clk 0:01:38]} 59... Rh4+ {[%clk 0:00:25.8]} 60. Kg3 {[%clk
0:01:38.2]} 60... Rc4 {[%clk 0:00:27.4]} 61. Rb7 {[%clk 0:01:36.4]} 61... Rc3+
{[%clk 0:00:28.6]} 62. Kf2 {[%clk 0:01:35.3]} 62... Rh3 {[%clk 0:00:28.5]} 63.
Rb5 {[%clk 0:01:35.8]} 63... Rh2+ {[%clk 0:00:30]} 64. Ke3 {[%clk 0:01:36.7]}
64... g5 {[%clk 0:00:26.9]} 65. hxg6+ {[%clk 0:00:37.4]} 65... Kxg6 {[%clk
0:00:27.7]} 66. Rb8 {[%clk 0:00:36.3]} 66... Rh3+ {[%clk 0:00:27.9]} 67. Kf4
{[%clk 0:00:36.4]} 67... Rh1 {[%clk 0:00:27.3]} 68. b5 {[%clk 0:00:32.1]} 68...
Rf1+ {[%clk 0:00:26.4]} 69. Kg3 {[%clk 0:00:33.1]} 69... Rg1+ {[%clk 0:00:27.7]}
70. Kh2 {[%clk 0:00:34.5]} 70... Rb1 {[%clk 0:00:28.3]} 71. b6 {[%clk
0:00:35.9]} 71... Kh5 {[%clk 0:00:28.9]} 72. Kg3 {[%clk 0:00:36.4]} 72... Rb3+
{[%clk 0:00:29.2]} 73. Kf4 {[%clk 0:00:37.9]} 73... Rb4+ {[%clk 0:00:30.4]} 74.
Kf5 {[%clk 0:00:39.3]} 74... Kh4 {[%clk 0:00:31.5]} 75. Ke5 {[%clk 0:00:32.5]}
75... h5 {[%clk 0:00:31.4]} 76. Kd5 {[%clk 0:00:34]} 76... Kh3 {[%clk
0:00:31.6]} 77. Kc5 {[%clk 0:00:35.1]} 77... Rb1 {[%clk 0:00:30.9]} 78. Rd8
{[%clk 0:00:35.7]} 78... h4 {[%clk 0:00:29.6]} 79. Kc6 {[%clk 0:00:34.9]} 79...
Kh2 {[%clk 0:00:29.4]} 80. b7 {[%clk 0:00:36.2]} 80... h3 {[%clk 0:00:30.6]} 81.
Rd5 {[%clk 0:00:32.5]} 81... Rxb7 {[%clk 0:00:29.7]} 82. Kxb7 {[%clk 0:00:33.6]}
82... Kg1 {[%clk 0:00:31.4]} 83. Rh5 {[%clk 0:00:34.8]} 83... h2 {[%clk
0:00:32.3]} 84. Rxh2 {[%clk 0:00:36.4]} 84... Kxh2 {[%clk 0:00:33]} 1/2-1/2